bitfinex/quotes_SOLUSD_20220227
["timestamp","ask_amount","ask_price","bid_price","bid_amount"]
[1645970020730,6.0,90.135,90.051,0.25]
[1645970020927,1.863446,90.145,90.051,0.25]
[1645970021728,1.863446,90.145,90.051,6.25]
[1645970022429,1.863446,90.145,90.052,6.0]
[1645970022630,113.663446,90.145,90.053,0.25]
[1645970022830,1.64757142,90.144,90.051,0.25]
[1645970023029,4.39436063,90.144,90.051,0.25]
[1645970023232,4.439,90.143,90.051,0.25]
[1645970023429,4.39436063,90.144,90.051,0.25]
[1645970023631,2.74678921,90.142,90.051,0.25]
[1645970023829,2.74678921,90.142,90.042,0.25]
[1645970024030,1.7930478,90.139,90.042,0.25]
[1645970024231,111.8,90.137,90.05,16.6562]
[1645970024432,111.8,90.142,90.051,0.25]
[1645970024632,111.8,90.14,90.051,0.25]
[1645970024831,111.8,90.138,90.051,0.25]
[1645970025031,111.8,90.136,90.051,0.25]
[1645970025232,1.6646161,90.133,90.051,0.25]
[1645970025433,33.27083388,90.13,90.051,0.25]
[1645970025632,6.0,90.129,90.051,0.25]
[1645970025934,7.6373844,90.129,90.031,24.0034]
[1645970026131,2.74678921,90.128,90.032,6.0]
[1645970026333,6.0,90.127,90.028,6.0]
[1645970026532,111.8,90.126,90.0,2.74678921]
[1645970026734,1.53762897,90.123,90.001,6.0]
[1645970027031,1.79707577,90.12,90.002,6.0]
[1645970027231,6.0,90.119,90.002,2.74678921]
[1645970027432,6.0,90.119,90.003,6.0]
[1645970027631,7.55873828,90.119,90.01,16.6632]
[1645970027831,111.8,90.118,90.011,6.0]
[1645970028031,111.8,90.114,90.011,6.0]
[1645970028233,1.36723855,90.111,90.011,6.0]
[1645970028436,6.0,90.11,90.004,6.0]
[1645970028637,111.8,90.109,90.004,6.0]
[1645970028838,1.63005564,90.109,90.02,128.4611]
[1645970029037,1.81220424,90.114,90.021,6.0]
[1645970029236,111.8,90.112,90.021,6.0]
[1645970029437,111.8,90.11,90.022,0.25]
[1645970029638,111.8,90.108,90.022,0.25]
[1645970029837,111.8,90.106,90.022,2.99678921]
[1645970030036,1.46219985,90.105,90.023,8.74678921]
[1645970030238,1.46219985,90.105,90.03,16.66]
[1645970030438,1.46219985,90.105,90.024,2.74678921]
[1645970030439,111.8,90.103,90.024,2.74678921]
[1645970030638,1.63880368,90.102,90.001,6.0]
[1645970030839,111.8,90.1,90.001,6.0]
[1645970031043,111.8,90.098,90.001,6.0]
[1645970031239,111.8,90.096,90.001,6.0]
[1645970031442,111.8,90.094,90.001,6.0]
[1645970031639,6.0,90.093,90.01,16.6627]
[1645970031839,6.0,90.093,90.011,6.25]
[1645970032339,6.0,90.099,90.011,6.25]
[1645970032538,6.0,90.099,90.011,4.75]
[1645970032741,6.0,90.099,90.02,16.6615]
[1645970032940,6.0,90.099,90.021,0.25]
[1645970034442,1.84315662,90.1,90.021,0.25]
[1645970034941,111.8,90.098,90.021,0.25]
[1645970035142,1.50505669,90.095,90.021,0.25]
[1645970035341,111.8,90.093,90.021,0.25]
[1645970035542,6.0,90.094,90.021,0.25]
[1645970035543,111.8,90.091,90.021,0.25]
[1645970035743,7.56691949,90.09,90.021,0.25]
[1645970035943,6.0,90.09,90.021,0.25]
[1645970036342,6.0,90.099,90.021,0.25]
[1645970036743,1.60747421,90.1,90.021,0.25]
[1645970036944,4.441,90.134,90.03,16.6595]
[1645970037154,4.441,90.136,90.031,6.25]
[1645970037349,1.48137121,90.2,90.044,5.0]
[1645970037545,1.48137121,90.213,90.046,66.74]
[1645970037747,1.48137121,90.213,90.045,6.25]
[1645970037748,111.8,90.211,90.048,66.74]
[1645970037945,111.8,90.211,90.11,16.6455]
[1645970038147,1.66732867,90.21,90.11,16.6455]
[1645970038346,1.66732867,90.21,90.05,111.8]
[1645970038546,4.438,90.209,90.053,2.50756686]
[1645970038748,1.87330275,90.206,90.054,6.0]
[1645970038972,111.8,90.204,90.055,4.438]
[1645970039151,1.79833586,90.201,90.056,6.0]
[1645970039347,111.8,90.197,90.057,4.688]
[1645970039546,111.8,90.189,90.09,16.6492]
[1645970039747,1.36866285,90.186,90.09,16.6492]
[1645970039945,16.6505,90.19,90.09,16.6492]
[1645970039946,111.8,90.182,90.09,16.6492]
[1645970040147,111.8,90.18,90.09,16.6492]
[1645970040345,111.8,90.178,90.09,16.6492]
[1645970040545,1.5504153,90.175,90.09,16.6492]
[1645970040745,111.8,90.173,90.07,16.6525]
[1645970040945,1.66729721,90.17,90.07,16.6525]
[1645970041146,111.8,90.166,90.07,16.6525]
[1645970041348,111.8,90.164,90.07,16.6525]
[1645970041548,1.46504186,90.161,90.07,16.6525]
[1645970041746,1.82117594,90.158,90.07,16.6525]
[1645970041945,1.62603329,90.155,90.07,16.6525]
[1645970042145,111.8,90.151,90.07,16.6525]
[1645970042347,6.0,90.15,90.07,16.6525]
[1645970042547,7.87398562,90.15,90.07,16.6525]
[1645970042750,7.87398562,90.15,90.071,0.25]
[1645970043446,111.8,90.149,90.071,0.25]
[1645970043647,1.4497121,90.146,90.071,0.25]
[1645970043849,6.0,90.145,90.071,0.25]
[1645970044648,33.90990883,90.152,90.08,16.6513]
[1645970044848,4.57818744,90.302,90.071,6.25]
[1645970044849,1.46171541,90.168,90.081,6.25]
[1645970045048,1.7997611,90.201,90.081,0.25]
[1645970045248,1.51320639,90.198,90.082,2.74678921]
[1645970045447,1.51846715,90.195,90.083,6.25]
[1645970045648,1.66394073,90.192,90.083,6.25]
[1645970045852,1.40851681,90.189,90.083,6.25]
[1645970046152,6.0,90.188,90.084,114.54678921]
[1645970046356,6.0,90.188,90.086,111.8]
[1645970046548,6.55708018,90.191,90.088,111.8]
[1645970046750,6.55708018,90.191,90.089,13.24704976]
[1645970046948,6.0,90.19,90.09,111.8]
[1645970047149,0.55708018,90.191,90.14,16.6404]
[1645970047448,0.55708018,90.191,90.141,0.25]
[1645970048049,0.55708018,90.191,90.113,6.0]
[1645970048050,0.55708018,90.191,90.113,2.28414678]
[1645970048250,0.55708018,90.191,90.14,16.6403]
[1645970048648,0.55708018,90.191,90.141,0.25]
[1645970049249,0.55708018,90.191,90.141,6.45]
[1645970049450,0.55708018,90.191,90.15,16.6383]
[1645970049648,0.55708018,90.191,90.151,0.25]
[1645970049849,0.55708018,90.191,90.141,6.45]
[1645970050054,0.55708018,90.191,90.142,111.8]
[1645970050257,0.55708018,90.191,90.145,2.86171136]
[1645970050450,8.018e-05,90.191,90.147,111.8]
[1645970050654,8.018e-05,90.191,90.16,16.6368]
[1645970050852,8.018e-05,90.191,90.162,2.31258238]
[1645970051051,8.018e-05,90.191,90.163,6.25]
[1645970051255,8.018e-05,90.191,90.165,3.12473594]
[1645970051454,8.018e-05,90.191,90.166,0.25]
[1645970051665,8.018e-05,90.191,90.161,46.9796]
[1645970051854,8.018e-05,90.191,90.17,16.6347]
[1645970053156,8.018e-05,90.191,90.171,0.25]
[1645970054977,8.018e-05,90.191,90.17,16.6347]
[1645970055178,8.018e-05,90.191,90.119,2.52690852]
[1645970055382,8.018e-05,90.191,90.114,2.77564209]
[1645970055578,8.018e-05,90.191,90.118,54.8261]
[1645970055778,8.018e-05,90.191,90.119,3.0826818]
[1645970055979,8.018e-05,90.191,90.12,6.0]
[1645970056379,8.018e-05,90.191,90.15,16.6378]
[1645970056782,8.018e-05,90.191,90.151,114.38747176]
[1645970056984,8.018e-05,90.191,90.152,54.60080014]
[1645970057180,8.018e-05,90.191,90.153,3.29959385]
[1645970057380,8.018e-05,90.191,90.154,29.6833]
[1645970057579,8.018e-05,90.191,90.155,3.003835]
[1645970057779,8.018e-05,90.191,90.161,114.8179532]
[1645970057979,8.018e-05,90.191,90.164,2.5351855]
[1645970058180,8.018e-05,90.191,90.165,6.25]
[1645970058382,8.018e-05,90.191,90.166,29.2077]
[1645970058579,8.018e-05,90.191,90.167,8.59745038]
[1645970058787,8.018e-05,90.191,90.167,11.34423959]
[1645970058984,8.018e-05,90.191,90.168,111.8]
[1645970059281,8.018e-05,90.191,90.17,111.8]
[1645970059483,8.018e-05,90.191,90.171,10.684]
[1645970059683,8.018e-05,90.191,90.171,15.76443215]
[1645970059883,8.018e-05,90.191,90.172,4.434]
[1645970060080,8.018e-05,90.191,90.173,6.25]
[1645970060284,4.434,90.316,90.175,114.79474609]
[1645970060585,16.8626,90.41,90.176,6.25]
[1645970060586,1.69817426,90.344,90.176,6.25]
[1645970060883,10.27994262,90.387,90.178,80.0]
[1645970061083,18.31592415,90.614,90.178,80.0]
[1645970061084,116.87907064,90.461,90.359,0.78125]
[1645970061284,77.89253774,90.504,90.359,0.78125]
[1645970061483,76.3944,90.504,90.36,2.74678921]
[1645970061684,76.3944,90.504,90.361,6.25]
[1645970061685,1.38214695,90.503,90.361,6.25]
[1645970061885,263.7617,90.54,90.361,56.04320547]
[1645970062086,1.68580928,90.539,90.362,9.69395212]
[1645970062285,29.48079365,90.466,90.363,6.25]
[1645970062485,29.48079365,90.466,90.364,4.424]
[1645970062684,29.48079365,90.466,90.365,6.25]
[1645970063084,29.48079365,90.466,90.337,2.7930135]
[1645970063284,29.48079365,90.466,90.338,6.0]
[1645970063484,29.48079365,90.466,90.337,2.7930135]
[1645970063485,118.97078921,90.465,90.31,65.00834699]
[1645970063685,129.76472658,90.465,90.309,2.74678921]
[1645970063885,2.77,90.44,90.237,4.425]
[1645970064083,2.77,90.42,90.237,4.425]
[1645970064284,2.77,90.42,90.223,4.428]
[1645970064485,111.8,90.418,90.223,4.428]
[1645970064687,30.50504601,90.409,90.223,11.00150967]
[1645970064885,119.24054224,90.408,90.223,4.428]
[1645970065086,111.8,90.406,90.222,2.72507785]
[1645970065286,1.3886821,90.403,90.223,4.428]
[1645970065484,111.8,90.401,90.223,7.17478921]
[1645970065684,1.47765936,90.398,90.222,2.72507785]
[1645970065885,111.8,90.394,90.224,2.74678921]
[1645970066085,2.77,90.39,90.213,2.78207708]
[1645970066285,1.41427459,90.387,90.204,6.75488952]
[1645970066485,1.43614951,90.384,90.204,4.429]
[1645970066687,1.8405896,90.381,90.205,2.74678921]
[1645970066886,111.8,90.379,90.206,6.0]
[1645970067086,1.43650505,90.376,90.207,3.08429708]
[1645970067289,1.42652259,90.373,90.208,6.0]
[1645970067488,111.8,90.371,90.19,2.74678921]
[1645970067687,10.43,90.372,90.181,78.7148]
[1645970067688,2.77,90.36,90.181,78.7148]
[1645970067888,1.49162322,90.357,90.182,2.45474278]
[1645970068087,111.8,90.353,90.183,29.75258931]
[1645970068288,1.57978382,90.35,90.177,2.97723661]
[1645970068489,6.0,90.352,90.167,2.74678921]
[1645970068490,1.49686176,90.347,90.167,2.74678921]
[1645970068688,2.77,90.329,90.152,2.74678921]
[1645970068889,1.80826514,90.326,90.142,2.30712714]
[1645970069090,111.8,90.324,90.142,2.30712714]
[1645970069290,1.85768906,90.322,90.144,2.34427318]
[1645970069490,1.41974199,90.32,90.144,114.14427318]
[1645970069690,10.433,90.319,90.145,33.59853356]
[1645970069893,7.56615339,90.318,90.15,16.6277]
[1645970070091,4.432,90.317,90.151,2.52459235]
[1645970070292,111.8,90.315,90.151,2.52459235]
[1645970070491,1.59376507,90.312,90.151,2.52459235]
[1645970070691,111.8,90.31,90.151,2.52459235]
[1645970070892,111.8,90.306,90.151,2.52459235]
[1645970071090,111.8,90.304,90.151,2.52459235]
[1645970071292,1.64382184,90.301,90.151,2.52459235]
[1645970071492,1.72196408,90.298,90.151,2.52459235]
[1645970071694,111.8,90.296,90.142,2.52015431]
[1645970071890,111.8,90.294,90.142,2.52015431]
[1645970072092,111.8,90.292,90.141,71.7168]
[1645970072293,111.8,90.288,90.142,30.15413304]
[1645970072496,1.82063818,90.286,90.143,2.53919755]
[1645970072692,6.0,90.285,90.144,8.47373948]
[1645970072893,6.0,90.285,90.143,26.82954435]
[1645970073195,6.0,90.285,90.142,30.15413304]
[1645970073196,2.74678921,90.284,90.144,6.0]
[1645970073392,2.74678921,90.284,90.142,30.15413304]
[1645970073393,1.50182298,90.282,90.143,6.0]
[1645970073594,1.51892481,90.279,90.142,30.15413304]
[1645970073793,10.434,90.278,90.141,71.7168]
[1645970073994,1.66718291,90.277,90.141,71.7168]
[1645970074195,10.434,90.276,90.142,2.78439744]
[1645970074397,6.0,90.275,90.142,2.78439744]
[1645970074796,35.96252788,90.273,90.142,2.78439744]
[1645970075002,11.8367834,90.272,90.142,2.78439744]
[1645970075196,1.86470515,90.271,90.115,2.72154774]
[1645970075395,10.434,90.27,90.115,2.72154774]
[1645970075597,1.43696547,90.268,90.115,2.72154774]
[1645970075799,2.77,90.259,90.092,2.52732274]
[1645970075999,2.77,90.249,90.092,2.52732274]
[1645970076200,1.55891387,90.246,90.094,2.6916009]
[1645970076408,111.8,90.244,90.094,2.6916009]
[1645970076599,26.01613371,90.242,90.094,2.6916009]
[1645970076800,11.79460373,90.241,90.094,2.6916009]
[1645970077000,1.54256528,90.24,90.094,2.6916009]
[1645970077200,10.436,90.239,90.093,30.93397936]
[1645970077404,1.64710904,90.238,90.093,30.93397936]
[1645970077604,2.77,90.229,90.093,30.93397936]
[1645970077800,2.77,90.229,90.036,2.80020551]
[1645970077801,111.8,90.227,90.036,2.80020551]
[1645970078000,2.77,90.209,90.037,47.1226]
[1645970078202,2.77,90.199,90.037,47.1226]
[1645970078403,2.77,90.189,90.037,47.1226]
[1645970078602,4.438,90.188,90.037,47.1226]
[1645970078802,1.43901852,90.185,90.038,29.17483786]
[1645970079000,111.8,90.183,90.038,29.17483786]
[1645970079202,1.83301155,90.18,90.038,29.17483786]
[1645970079501,1.75613972,90.177,90.038,29.17483786]
[1645970079701,1.60778354,90.175,90.038,29.17483786]
[1645970079902,28.61521258,90.172,90.038,29.17483786]
[1645970080109,10.439,90.171,90.039,2.54038158]
[1645970080407,1.86486518,90.17,90.04,6.0]
[1645970080603,6.0,90.169,90.04,9.11729001]
[1645970080803,6.0,90.169,90.04,33.80310871]
[1645970081005,6.0,90.169,90.041,2.78212289]
[1645970081204,2.74678921,90.168,90.042,6.25]
[1645970081403,6.0,90.167,90.042,6.25]
[1645970081804,2.74678921,90.166,90.042,6.25]
[1645970082004,6.0,90.165,90.042,0.25]
[1645970082206,6.0,90.165,90.039,3.29072496]
[1645970082714,2.74678921,90.164,90.039,3.29072496]
[1645970083009,6.0,90.163,90.039,3.29072496]
[1645970083205,6.0,90.163,90.04,6.0]
[1645970083405,6.0,90.167,90.041,0.25]
[1645970083606,2.74678921,90.162,90.041,0.25]
[1645970083806,6.0,90.161,90.041,0.25]
[1645970084207,2.74678921,90.16,90.041,0.25]
[1645970084409,6.0,90.159,90.04,6.0]
[1645970084606,6.0,90.159,90.039,3.04072496]
[1645970084607,34.66861041,90.158,90.039,3.04072496]
[1645970084807,34.66861041,90.158,90.04,6.0]
[1645970085006,6.0,90.157,90.04,8.74678921]
[1645970085211,10.3658369,90.157,90.04,8.74678921]
[1645970085407,2.74678921,90.156,90.039,3.04072496]
[1645970085608,6.0,90.155,90.038,29.17483786]
[1645970085814,6.0,90.155,90.039,0.25]
[1645970086307,2.74678921,90.154,90.039,3.09000046]
[1645970086508,6.0,90.153,90.039,3.09000046]
[1645970086707,1.44706426,90.154,90.039,3.09000046]
[1645970086909,6.0,90.153,90.039,3.09000046]
[1645970087112,6.0,90.153,90.037,47.1226]
[1645970087309,1.60013272,90.151,90.037,47.1226]
[1645970087511,111.8,90.149,90.024,24.1212]
[1645970087741,10.44,90.148,90.024,24.1212]
[1645970088014,7.79887467,90.147,90.025,9.11455485]
[1645970088311,6.0,90.15,90.027,2.93391324]
[1645970088512,6.0,90.15,90.028,6.0]
[1645970088711,1.77673,90.156,90.028,8.74678921]
[1645970088912,1.77673,90.156,90.029,0.25]
[1645970089111,1.77673,90.156,90.029,2.99678921]
[1645970089312,1.77673,90.156,90.03,6.0]
[1645970089513,1.77673,90.156,90.031,0.25]
[1645970089715,7.18578921,90.155,90.031,0.25]
[1645970089912,6.0,90.154,90.031,0.25]
[1645970090111,5.90043257,90.153,90.031,0.25]
[1645970090316,6.0,90.152,90.031,0.25]
[1645970090512,6.0,90.152,90.024,24.1212]
[1645970090513,8.74678921,90.152,90.026,0.25]
[1645970090714,4.44,90.151,90.026,111.8]
[1645970090913,6.0,90.15,90.032,2.74678921]
[1645970091323,111.8,90.149,90.033,6.0]
[1645970091519,1.485409,90.146,90.034,0.25]
[1645970091714,111.8,90.142,90.025,31.96997525]
[1645970091913,1.75569404,90.14,90.025,31.96997525]
[1645970092114,1.49771152,90.138,90.025,31.96997525]
[1645970092313,1.46297486,90.135,90.024,24.1212]
[1645970092515,111.8,90.133,90.024,24.1212]
[1645970092715,1.57592587,90.13,90.024,24.1212]
[1645970092916,6.0,90.129,90.024,24.1212]
[1645970093115,7.56539416,90.133,90.025,114.54678921]
[1645970093319,7.56539416,90.133,90.026,28.63358116]
[1645970093320,6.0,90.133,90.026,28.63358116]
[1645970093513,6.0,90.133,90.026,25.7744719]
[1645970093714,1.53638242,90.14,90.027,0.25]
[1645970093916,111.8,90.138,90.027,0.25]
[1645970094117,2.74678921,90.132,90.024,24.1212]
[1645970094316,10.44,90.131,90.025,0.25]
[1645970094517,1.65483165,90.13,90.025,0.25]
[1645970094716,6.0,90.129,90.025,0.25]
[1645970094916,30.87886099,90.128,90.025,25.2751494]
[1645970095117,7.35058357,90.127,90.025,25.2751494]
[1645970095519,2.74678921,90.126,90.025,25.2751494]
[1645970095718,6.0,90.125,90.025,25.2751494]
[1645970096117,2.74678921,90.124,90.025,25.2751494]
[1645970096318,6.0,90.123,90.025,25.2751494]
[1645970097318,6.0,90.123,90.025,0.25]
[1645970097520,1.76747703,90.121,90.025,0.25]
[1645970097722,10.44,90.12,90.025,0.25]
[1645970098122,1.84618039,90.119,90.025,0.25]
[1645970098319,6.0,90.118,90.025,31.8135558]
[1645970098620,6.0,90.118,90.026,2.66318082]
[1645970098820,7.70046432,90.127,90.027,0.25]
[1645970099920,7.70046432,90.127,90.03,16.6556]
[1645970100121,7.70046432,90.127,90.031,111.8]
[1645970100326,7.70046432,90.127,90.032,2.4487652]
[1645970100327,6.0,90.127,90.032,2.4487652]
[1645970100526,6.0,90.127,90.033,111.8]
[1645970100825,6.0,90.127,90.034,2.26149618]
[1645970101024,1.81396352,90.152,90.051,111.8]
[1645970101223,23.1461,90.237,90.051,111.8]
[1645970101224,6.0,90.151,90.052,3.31348016]
[1645970101423,1.65732527,90.217,90.052,3.31348016]
[1645970101424,6.0,90.216,90.054,111.8]
[1645970101626,6.22131064,90.215,90.055,0.25]
[1645970101826,2.74678921,90.186,90.055,0.25]
[1645970102023,111.8,90.182,90.055,0.25]
[1645970102223,1.79582964,90.179,90.055,0.25]
[1645970102523,1.75351855,90.177,90.055,0.25]
[1645970102748,6.0,90.176,90.055,0.25]
[1645970102925,111.8,90.175,90.055,0.25]
[1645970103125,111.8,90.173,90.055,0.25]
[1645970103328,111.8,90.171,90.055,0.25]
[1645970103524,111.8,90.167,90.055,0.25]
[1645970103726,111.8,90.165,90.054,4.45483602]
[1645970103925,111.8,90.163,90.052,47.5542]
[1645970104126,111.8,90.161,90.051,5.52]
[1645970104330,1.57018718,90.158,90.051,5.52]
[1645970104526,111.8,90.156,90.051,5.52]
[1645970104727,111.8,90.154,90.051,5.52]
[1645970104925,111.8,90.152,90.051,5.52]
[1645970105125,36.74656099,90.153,90.051,5.52]
[1645970105126,111.8,90.15,90.051,5.52]
[1645970105326,111.8,90.148,90.051,5.52]
[1645970105528,1.8214838,90.145,90.051,5.52]
[1645970105730,111.8,90.139,90.051,5.52]
[1645970105931,111.8,90.137,90.051,5.52]
[1645970106127,111.8,90.135,90.051,5.52]
[1645970106327,111.8,90.133,90.051,5.52]
[1645970106531,111.8,90.131,90.051,5.52]
[1645970106732,111.8,90.129,90.051,5.52]
[1645970106926,111.8,90.127,90.051,5.52]
[1645970107128,111.8,90.125,90.051,5.52]
[1645970107329,111.8,90.123,90.051,5.52]
[1645970107526,1.81191232,90.12,90.051,5.52]
[1645970107729,111.8,90.118,90.051,5.52]
[1645970107929,1.79856412,90.115,90.051,5.52]
[1645970108129,111.8,90.113,90.051,5.52]
[1645970108329,6.0,90.117,90.051,5.52]
[1645970108330,111.8,90.111,90.051,5.52]
[1645970108533,111.8,90.107,90.051,5.52]
[1645970108829,1.36406921,90.104,90.051,5.52]
[1645970109029,1.75760454,90.101,90.051,5.52]
[1645970109230,1.37176905,90.098,90.051,5.52]
[1645970109430,1.7075209,90.095,90.051,5.52]
[1645970109629,111.8,90.091,90.051,5.52]
[1645970109830,1.79865738,90.088,90.051,5.52]
[1645970110033,113.24281256,90.086,90.051,5.52]
[1645970110251,1.73641132,90.083,89.996,47.0536]
[1645970110433,117.8,90.082,89.996,47.0536]
[1645970110633,1.49812076,90.081,89.996,47.0536]
[1645970110832,1.87101811,90.078,89.996,47.0536]
[1645970111034,1.87101811,90.078,89.976,27.41882088]
[1645970111035,1.87261741,90.075,89.98,34.34763237]
[1645970111232,111.8,90.073,89.98,34.34763237]
[1645970111435,1.41174473,90.07,89.98,34.34763237]
[1645970111633,6.0,90.069,89.98,34.34763237]
[1645970111836,111.8,90.068,89.976,24.3426]
[1645970112037,1.51748686,90.065,89.976,24.3426]
[1645970112240,6.0,90.064,89.976,24.3426]
[1645970112438,6.0,90.064,89.98,16.6681]
[1645970112641,6.0,90.064,89.981,0.25]
[1645970112839,6.0,90.092,89.977,2.83262228]
[1645970113039,6.0,90.109,89.979,2.52181142]
[1645970113242,6.0,90.109,89.98,6.25]
[1645970113439,6.0,90.109,89.99,16.6661]
[1645970113643,36.27333549,90.108,89.992,35.36484931]
[1645970113842,111.8,90.106,89.993,0.25]
[1645970114039,1.78476404,90.103,89.993,0.25]
[1645970114239,6.0,90.102,89.993,0.25]
[1645970114440,1.71514538,90.1,89.993,0.25]
[1645970114640,6.0,90.099,90.001,2.39795218]
[1645970114840,6.0,90.099,90.002,0.25]
[1645970115241,111.8,90.105,90.002,0.25]
[1645970115442,111.8,90.103,90.002,0.25]
[1645970115642,7.7790807,90.102,90.002,0.25]
[1645970115844,1.7790807,90.102,90.002,0.25]
[1645970116045,6.0,90.101,89.993,0.25]
[1645970116246,6.0,90.104,89.993,0.25]
[1645970116443,4.442,90.103,89.993,2.52773056]
[1645970116644,6.0,90.102,90.0,16.6648]
[1645970116844,6.0,90.102,90.001,0.25]
[1645970117447,6.0,90.107,90.001,2.92011721]
[1645970117645,6.0,90.107,90.002,6.0]
[1645970117858,6.0,90.107,90.003,0.25]
[1645970118560,6.0,90.107,90.02,16.6617]
[1645970118761,7.55033399,90.107,90.021,3.2757341]
[1645970119560,7.55033399,90.107,90.03,16.6602]
[1645970119760,7.55033399,90.107,90.031,0.25]
[1645970120360,114.54678921,90.106,90.03,16.6602]
[1645970120560,114.54678921,90.106,90.012,48.3749]
[1645970120561,111.8,90.104,90.012,48.3749]
[1645970120761,119.37263359,90.103,90.013,0.25]
[1645970120962,1.36222742,90.102,90.012,48.3749]
[1645970121163,6.0,90.101,90.012,48.3749]
[1645970121362,2.74678921,90.101,90.012,48.3749]
[1645970121561,6.0,90.1,90.012,48.3749]
[1645970121761,8.74678921,90.1,90.012,48.3749]
[1645970121961,2.74678921,90.099,90.012,48.3749]
[1645970122164,6.0,90.098,90.02,16.6622]
[1645970122362,6.0,90.098,90.021,0.25]
[1645970122565,6.0,90.098,90.02,27.41351867]
[1645970122764,6.0,90.106,90.021,0.25]
[1645970122964,6.0,90.106,90.012,48.3749]
[1645970123166,2.74678921,90.105,90.02,16.6627]
[1645970123365,6.0,90.104,90.02,16.6627]
[1645970123665,6.0,90.104,90.021,27.5487752]
[1645970124465,6.0,90.104,90.03,16.6606]
[1645970124665,1.8517462,90.105,90.031,0.25]
[1645970124867,6.0,90.104,90.022,0.25]
[1645970125468,4.441,90.133,90.022,6.25]
[1645970125668,4.441,90.156,90.041,11.24282741]
[1645970125868,16.656,90.17,90.042,0.25]
[1645970126071,6.0,90.146,90.042,49.016]
[1645970126370,6.0,90.146,90.043,29.20875091]
[1645970126579,1.6078802,90.174,90.044,2.54507966]
[1645970126580,117.8,90.173,90.044,2.54507966]
[1645970126768,1.80921119,90.172,90.06,55.5043]
[1645970127068,1.83040474,90.169,90.044,24.13316328]
[1645970127267,6.0,90.168,90.042,48.766]
[1645970127467,6.00460288,90.167,90.042,48.766]
[1645970127668,1.58764538,90.164,90.042,48.766]
[1645970127869,1.41798231,90.161,90.043,27.16891761]
[1645970128067,10.439,90.16,90.043,27.16891761]
[1645970128267,1.6510442,90.159,90.043,27.16891761]
[1645970128468,6.0,90.158,90.05,16.6571]
[1645970128668,117.6681673,90.157,90.051,0.25]
[1645970128872,1.35396735,90.154,90.051,0.25]
[1645970129070,111.8,90.152,90.05,16.6571]
[1645970129270,111.8,90.148,90.05,16.6571]
[1645970129473,111.8,90.146,90.05,16.6571]
[1645970129671,1.43000842,90.143,90.05,16.6571]
[1645970129870,111.8,90.141,90.05,16.6571]
[1645970130070,1.73645118,90.138,90.05,16.6571]
[1645970130272,1.64319099,90.135,90.042,48.766]
[1645970130473,111.8,90.133,90.042,48.766]
[1645970130772,1.64205549,90.13,90.042,48.766]
[1645970130972,113.21784574,90.128,90.042,48.766]
[1645970131174,1.4521094,90.125,90.043,27.22809206]
[1645970131376,111.8,90.123,90.043,27.22809206]
[1645970131580,6.0,90.122,90.042,48.766]
[1645970131775,1.78592761,90.122,90.042,48.766]
[1645970131979,6.0,90.121,90.042,48.766]
[1645970132179,6.0,90.121,90.043,0.25]
[1645970132380,6.0,90.126,90.043,0.25]
[1645970132582,6.0,90.126,90.043,34.44187215]
[1645970133081,6.0,90.126,90.05,16.657]
[1645970133380,6.0,90.126,90.043,34.44187215]
[1645970133381,1.35794609,90.147,90.052,2.33451506]